Cogmind - Beta 10.2 *** ADVENTURER MODE // 2022.02.17 @ 19:16:11 Player: woegarden Result: Destroyed by Y-45 Defender with Beam Rifle Performance ------------- Evolutions (1) 500 Regions Visited (2) 400 Robots Destroyed (25) 125 Value Destroyed (408) 408 Prototype IDs (1) 20 Alien Tech Used (0) 0 Bonus (0) 0 TOTAL SCORE: 1453 Bonus ------- None Cogmind --------- Core Integrity 0/400 Matter 300/300 Energy 18/325 System Corruption 0% Temperature Cool (66) Movement Core (250) Ox4 Location -9/Materials Parts ------- > --- POWER (1) -------- Light Ion Engine > --- PROPULSION (3) --- (None) > --- UTILITY (3) ------ Medium Storage Unit Medium Battery Visual Processing Unit > --- WEAPON (2) ------- (None) > --- INVENTORY (8) ---- Ion Engine Small Storage Unit Weight Redist. System Structural Scanner Sensor Array Improved Signal Interpreter Transport Network Coupler Peak State ------------ > --- POWER ------------ Light Ion Engine > --- PROPULSION ------- Hover Unit Flight Unit Flight Unit > --- UTILITY ---------- Medium Storage Unit Weight Redist. System Visual Processing Unit > --- WEAPON ----------- EM Shotgun EM Shotgun > --- INVENTORY -------- Ion Engine Flight Unit Small Storage Unit Structural Scanner Sensor Array Improved Signal Interpreter Transport Network Coupler [Rating: 13] Favorites ----------- Power Light Ion Engine Engine Light Ion Engine Propulsion Flight Unit Leg Aluminum Leg Hover Unit Hover Unit Flight Unit Flight Unit Utility Visual Processing Unit Device Weight Redist. System Storage Medium Storage Unit Processor Visual Processing Unit Weapon EM Shotgun Energy Gun EM Shotgun Energy Cannon Light EM Pulse Cannon Ballistic Gun Assault Rifle Build | -11 -10 -9 ------- Run | Scr Mat Mat Slots Evolved 2 | . . 2 Power . | . . . Propulsion 1 | . . 1 Utility 1 | . . 1 Weapon . | . . . Parts Attached 39 | 6 22 11 Power 9 | 1 5 3 Engine 9 | 1 5 3 Core . | . . . Reactor . | . . . Propulsion 10 | 2 4 4 Treads . | . . . Leg 2 | 2 . . Wheel . | . . . Hover 2 | . 2 . Flight 6 | . 2 4 Utility 10 | 1 7 2 Device 1 | . . 1 Storage 7 | 1 5 1 Processor 2 | . 2 . Hackware . | . . . Protection . | . . . Artifact . | . . . Weapon 10 | 2 6 2 Energy Gun 7 | 1 6 . Energy Cannon 1 | . . 1 Ballistic Gun 2 | 1 . 1 Ballistic Cannon . | . . . Launcher . | . . . Special Weapon . | . . . Impact Weapon . | . . . Slashing Weapon . | . . . Piercing Weapon . | . . . Special Melee Weapon . | . . . Unidentified Prototypes 1 | . . 1 Parts Lost 11 | . 1 10 Power 1 | . . 1 Propulsion 5 | . . 5 Utility . | . . . Weapon 5 | . 1 4 Highest Loss Streak 4 | . 1 4 Average Slot Usage (%) 76 | . 85 68 Engine 10 | . 11 10 Leg 2 | . 5 . Hover 5 | . 10 . Flight 13 | . 11 14 Device 5 | . . 10 Storage 12 | . 14 11 Processor 9 | . 7 11 Energy Gun 12 | . 19 6 Ballistic Gun 2 | . 2 2 Naked Turns . | . . . Heaviest Build 39 | 10 39 17 Greatest Support 20 | 20 20 18 Greatest Overweight (x) 5 | . 4 5 Average Overweight (x) . | . . . Largest Inventory Capacity 12 | 6 12 8 Average Capacity 7 | 4 7 8 Most Carried 8 | 4 8 8 Average Carried 5 | . 4 7 Final Capacity 8 | 6 8 8 Final Carried 7 | . 7 7 Class Distribution -------------------- 55% | Mutant 44% | Scavenger-Mutant Dominant Class ---------------- Mutant | -10/Materials Scavenger-Mutant | -9/Materials Resources | -11 -10 -9 ----------- Run | Scr Mat Mat Matter Collected 552 | 226 169 157 Remotely . | . . . Salvage Created 710 | . 189 521 Parts 62 | . 23 39 Haulers Intercepted 2 | . 1 1 Recyclers Shooed 1 | . 1 . Parts Field Recycled . | . . . Retrieved Matter . | . . . Parts Self-Destructed . | . . . Prevented . | . . . Kills | -11 -10 -9 ------- Run | Scr Mat Mat Combat Hostiles Destroyed 20 | . 6 14 Melee 1 | . . 1 Guns 11 | . 6 5 Cannons 6 | . . 6 AOE 2 | . . 2 Classes Destroyed 6 | . 3 3 Hauler 2 | . 1 1 Recycler 1 | . . 1 Watcher 2 | . 2 . Swarmer 14 | . 6 8 Grunt 4 | . . 4 Sentry 2 | . . 2 Best Kill Streak 8 | . 3 8 Combat Bots Only 7 | . 3 7 Max Kills in Single Turn 2 | . 1 2 Gunslinging 1 | . . 1 Exploded 1 | . . 1 Melee 1 | . . 1 Uniques/NPCs Destroyed . | . . . Combat | -11 -10 -9 -------- Run | Scr Mat Mat Damage Taken 1222 | . 238 984 Core 466 | . 60 406 Absorbed by Shields . | . . . Core Remaining (%) 88 | 100 76 . Volleys Fired 63 | . 23 40 Largest 2 | . 2 2 Hottest 90 | . 85 90 Shots Fired 79 | . 32 47 Gun 63 | . 32 31 Cannon 16 | . . 16 Launcher . | . . . Special . | . . . Kinetic 21 | . 5 16 Thermal 23 | . 23 . Explosive . | . . . Electromagnetic 35 | . 4 31 Robot Hit Streak 15 | . 12 15 Robot Miss Streak 2 | . 2 2 Penetration Max . | . . . Secondary Targets 3 | . 2 1 Max Gunslinging Chain 1 | . 1 1 Shots Hit Robots 66 | . 26 40 Core Hits 42 | . 14 28 Critical Hits . | . . . Critical Kills . | . . . Critical Parts Destroyed . | . . . Melee Attacks . | . . . Impact . | . . . Slashing . | . . . Piercing . | . . . Sneak Attacks . | . . . Combat Hostiles . | . . . Follow-up Attacks . | . . . Damage Inflicted 1143 | . 321 822 Guns 600 | . 317 283 Cannons 279 | . . 279 Explosions 238 | . . 238 Melee . | . . . Ramming 26 | . 4 22 Kinetic 156 | . 47 109 Thermal 460 | . 222 238 Explosive . | . . . Electromagnetic 501 | . 48 453 Impact . | . . . Slashing . | . . . Piercing . | . . . Highest Corruption . | . . . Average Corruption . | . . . Corruption Purged . | . . . Overload Shots . | . . . Overflow Damage 25 | . . 25 Projectiles . | . . . Explosions 25 | . . 25 Melee . | . . . Knockbacks . | . . . Impact . | . . . Kinetic . | . . . Secondary . | . . . Self-Inflicted Damage 74 | . 2 72 Shots 2 | . . 2 Rammed 6 | . 1 5 Targets Rammed 6 | . 1 5 Kicked . | . . . Crushed . | . . . Highest Temperature 80 | . 60 80 Average Temperature 28 | . 14 36 Received Heat Transfer 336 | . 39 297 Siege Activations . | . . . Robots Corrupted . | . . . Combat Hostiles . | . . . Parts Fried 1 | . . 1 Impact Corruptions . | . . . Robots Melted . | . . . Combat Hostiles . | . . . Parts Melted . | . . . Heat Transferred 750 | . 500 250 Parts Sabotaged . | . . . Parts Stolen . | . . . Parts Stripped . | . . . Power Chain Reactions 2 | . . 2 Missiles Intercepted . | . . . Alert | -11 -10 -9 ------- Run | Scr Mat Mat Peak Influence 282 | . 241 282 Initial 37 | . . 37 Average 96 | . 97 101 Maximum Alert Level 1 | . 1 1 Low Security (%) 93 | 100 88 97 Level 1 6 | . 11 2 Level 2 . | . . . Level 3 . | . . . Level 4 . | . . . Level 5 . | . . . High Security . | . . . Max Security . | . . . Squads Dispatched . | . . . Investigation . | . . . Extermination . | . . . Reinforcement . | . . . Assault . | . . . Garrison . | . . . Intercept . | . . . Construction Impeded . | . . . Haulers Reinforced . | . . . Stealth | -11 -10 -9 --------- Run | Scr Mat Mat Distress Signals 2 | . . 2 Communications Jammed . | . . . Distress Signals . | . . . Times Spotted 43 | . 15 28 Peak Tracking Total 13 | . 4 13 Tactical Retreats 6 | . 2 4 Traps | -11 -10 -9 ------- Run | Scr Mat Mat Traps Triggered 1 | . 1 . Indirectly . | . . . Trap Hack Attempts . | . . . Triggered . | . . . Disarmed . | . . . Reprogrammed . | . . . Reused . | . . . Traps Extracted . | . . . Installed . | . . . Triggered . | . . . Machines | -11 -10 -9 ---------- Run | Scr Mat Mat Machines Disabled . | . . . Max in Single Turn . | . . . Machines Sabotaged . | . . . Garrisons Compromised . | . . . Overloaded Fab Kills . | . . . Fab Network Shutdowns . | . . . Hacking | -11 -10 -9 --------- Run | Scr Mat Mat Machines Accessed 1 | . 1 . Terminals 1 | . 1 . Fabricators . | . . . Repair Stations . | . . . Recycling Units . | . . . Scanalyzers . | . . . Garrison Access . | . . . Total Hacks 4 | . 4 . Successful 4 | . 4 . Failed . | . . . Catastrophic . | . . . Database Lockouts . | . . . Manual . | . . . Terminals 4 | . 4 . Fabricators . | . . . Repair Stations . | . . . Recycling Units . | . . . Scanalyzers . | . . . Garrison Access . | . . . Terminal Hacks 4 | . 4 . Record 3 | . 3 . Alert Level 1 | . 1 . Fabricator Hacks . | . . . Repair Station Hacks . | . . . Recycling Unit Hacks . | . . . Scanalyzer . | . . . Garrison Access Hacks . | . . . Unauthorized Hacks . | . . . Terminals . | . . . Fabricators . | . . . Repair Stations . | . . . Recycling Units . | . . . Scanalyzers . | . . . Garrison Access . | . . . Data Cores Recovered . | . . . Used . | . . . Hacking Detections 1 | . 1 . Full Trace Events 1 | . 1 . Feedback Events . | . . . Feedback Blocked . | . . . Robot Schematics Acquired . | . . . Robots Built . | . . . Matter . | . . . Time . | . . . Total Robot Build Rating . | . . . Part Schematics Acquired . | . . . Parts Built . | . . . Matter . | . . . Time . | . . . Total Part Build Rating . | . . . Parts Repaired . | . . . Time . | . . . Parts Recycled . | . . . Recycled Matter . | . . . Retrieved Matter . | . . . Retrieved Components . | . . . Parts Scanalyzed . | . . . Part Schematics Acquired . | . . . Parts Damaged . | . . . Bothacking | -11 -10 -9 ------------ Run | Scr Mat Mat Used RIF Installer . | . . . Robots Hacked . | . . . Non-combat . | . . . Combat . | . . . Robot Hacks Applied . | . . . Relay Couplers Released . | . . . Robots Rewired . | . . . Allies Hacked . | . . . Hacks Repelled . | . . . Allies | -11 -10 -9 -------- Run | Scr Mat Mat Total Allies . | . . . Largest Group . | . . . Highest-Rated Group . | . . . Highest-Rated Ally . | . . . Total Orders . | . . . Ally Attacks . | . . . Total Damage . | . . . Kills . | . . . Allies Corrupted . | . . . Allies Melted . | . . . Intel | -11 -10 -9 ------- Run | Scr Mat Mat Robot Analysis Total . | . . . Derelict Logs Recovered . | . . . Drone Launches . | . . . Drone Recoveries . | . . . Exploration | -11 -10 -9 ------------- Run | Scr Mat Mat Turns Passed 1300 | 48 586 666 Spaces Moved 1032 | 43 587 402 Core 29 | 20 . 9 Treads . | . . . Legs 103 | 23 80 . Wheels . | . . . Hover 183 | . 158 25 Flight 717 | . 349 368 Fastest Speed 34 | 50 37 34 Average Speed 75 | 87 69 82 Slowest Speed 357 | 120 357 300 Overloaded Moves . | . . . Propulsion Burnouts . | . . . Robots Hopped 5 | . 4 1 Cave-ins Triggered . | . . . Exploration Rate (%) 41 | 4 84 37 Regions Visited 2 Branch Regions . Pre-discovered Areas . | . . . Known Exits Taken . | . . . Unknown Exits Taken 2 | 1 1 . Scrap Searched . | . . . Spaces Dug . | . . . Terrain Destroyed 8 | . . 8 Melee . | . . . Projectile . | . . . AOE 8 | . . 8 Terrain Rammed . | . . . Walls Destroyed . | . . . Machines Disabled . | . . . Actions | -11 -10 -9 --------- Run | Scr Mat Mat Total 1471 | 53 728 690 Wait 291 | . 68 223 Move 1020 | 42 578 400 Hop 5 | . 4 1 Pick Up 30 | 5 18 7 Fast Attach 6 | 1 3 2 Attach 21 | 5 9 7 Detach 6 | . 5 1 Swap 12 | . 10 2 Drop 11 | . 9 2 Fire 63 | . 23 40 Melee . | . . . Ram 6 | . 1 5 Kick . | . . . Crush . | . . . Escape Stasis . | . . . Rewire . | . . . Trap . | . . . Miscellaneous . | . . . Route ------- -11/Scrapyard -10/Materials (discovered 4 exits: [*Mat x2] / [*Min x2]) -9/Materials History --------- Turn | Location | Event 6 | -11/Scrapyard | Discovered new exit (range 15) 49 | -11/Scrapyard | Entered Materials 172 | -10/Materials | Discovered new exit (range 10) 244 | -10/Materials | Discovered new exit (range 9) 256 | -10/Materials | Discovered new exit (range 8) 323 | -10/Materials | Build established: Mutant 407 | -10/Materials | Discovered new exit (range 11) 635 | -10/Materials | Entered another Materials area 635 | -9/Materials | Evolved 2 slots: Propulsion x1, Utility x1 861 | -9/Materials | Lost 4 parts (2n2w) 1176 | -9/Materials | Build established: Scavenger-Mutant 1218 | -9/Materials | Core integrity fell below 50% 1259 | -9/Materials | Lost 4 parts (1p2n1w) 1296 | -9/Materials | Core integrity fell below 20% 1301 | -9/Materials | Destroyed by Y-45 Defender with Beam Rifle Last Messages --------------- 01269_ G-34 Mercenary destroyed. 01271_ Y-45 Defender shuts down. 01277_ Acquired 16 matter. 01283_ G-34 Mercenary destroyed. 01285_ Destroyed Flight Unit. 01287_ S-10 Pest destroyed. 01289_ R-06 Scavenger collects Ion Engine. 01291_ G-34 Mercenary destroyed. 01292_ Acquired 41 matter. 01292_ R-06 Scavenger collects Sml. Laser. 01292_ Y-45 Defender reactivates. 01295_ R-06 Scavenger collects Aluminum Leg. 01298_ R-06 Scavenger collects Lgt. Assault Rifle. 01298_ Flight Unit fried. 01298_ S-10 Pest destroyed. 01300_ Chain reaction triggered in Imp. Ion Engine. 01300_ R-06 Scavenger destroyed. 01300_ Destroyed Flight Unit. 01300_ S-10 Pest destroyed. 01301_ Lgt. EM Pulse Cannon destroyed. Map ----- +----------------------------------------------------+ | ?????????????????????????????????????????????????? | | ?????????????????????????????????????????????????? | | ?????????????????????????????????????????????????? | | ?????????????????????????????????????????????????? | | ?????????????????????????????????????????????????? | | ?????????????????????????????????????????????????? | | ?????????????????????????????????????????????????? | | ?????????????????????????????????????????????????? | | ?????????????????????????????????????????????????? | | ?????????????????????????????????????????????????? | | ?????????????????????????????????????????????????? | | ?????????????????????????????????????????????????? | | ?????????????????????????????????????????????????? | | ?????????????????????????????????????????????????? | | ?????????????????????????????????????????????????? | | ?????????????????????????????????????????????????? | | ?????????????????????????????????????????????????? | | ????????????????????????????????????????????????? | | ?????????????????????###???????????????????????? | | ????????????????????? #???????????????????????? | | ?????????????????????# #???????????????????????? | | ?????????????????????# ########??????????????????? | | ?????????????????????# # #??????????????????? | | ?????????????????????#*;=! "" #??????????????????? | | ?????????????????????#%;Y=["""#??????????????????? | | ?????????????????????#*;s@= R"#??????????????????? | | ??????????#??????????#Ys%%["""#??????????????????? | | ??????????# ?????????#[#%*=! #??????????????????? | | ??????????# ????????# ########??????????????????? | | ??????????# ????????# #?????????????????????????? | | ??????????# [ ???????# #?????????????????????????? | | ??????????? ]??????# #?????????????????????????? | | ????????????? ?????# #????????????????# ???????? | | ????????# #####+###### ###?????????""???# ???????? | | ????????# #?????????? ??# #??????? | | ????????# ############+### ###????? | | ????????# #????? | | ????????# ^ ^ =%* ####?? | | ????????# ^ [ !!##? | | ????????# """ ########### !#? | | ????????# """ #?????????# !#? | | ????????# ########## """ #?????????# !?? | | ????????#??????????# #??????#### ??? | | ???????????????????# #??????+ ![ !???? | | ???????????????????# """ #?????????# %###### | | ???????????????????# """ #?????????# | | ???????????????????# """ #?????????# ### | | ???????????????????# !#?????????# #?? | | ???????????????????# =%########### #?? | | ??????????????????## %*! #?? | +----------------------------------------------------+ Best States ------------- Heat Dissipation 28 Energy Generation 14 Energy Capacity 325 Matter Stores 300 Matter Capacity 300 Sight Range 18 Terrain Scan Density 10 Additional Mass Support 6 Resistance: KI 20 Resistance: TH 20 Resistance: EX 20 Resistance: EM 20 Resistance: I 20 Resistance: S 20 Resistance: P 20 Evasion (%) 63 Offensive Hacking 10 Item Schematics ----------------- None Robot Schematics ------------------ None Fabricated ------------ Nothing Alien Tech Used ----------------- None Achievements -------------- None Challenges ------------ None Game ------ Seed SubatomicGyrokineticFirepult Manual? 0 Play Time 00:24:42 Cumulative 6.2 hours Start 2022.02.17 @ 18:53:49 End 2022.02.17 @ 19:16:11 Sessions 1 Manual Loads 0 Difficulty Adventurer Special Mode None Game No. 11 Rogue 0 Adventurer 11 Explorer 0 Win Type - Total 0 Types 0/0/0/0/0/0/0/0/0 Lore% 14 Gallery% 10 Achievement% 8 Wizard Run 0 Options --------- ASCII 0 Keyboard 0 Movement Mouse Keybinds 0 Fullscreen 1 Font 16/Proggy Map View 76x50 Tactical HUD 1 Map Filters NONE Filters NONE Steam 1 RUN: 8787d395-6b90-420e-8aab-8d95a7616b92